Cogmind - Beta 10.2 @@@ ROGUE MODE // 2021.08.04 @ 05:39:02 Player: Olga Result: Destroyed by D-53 Grenadier with Mini Grenade Launcher Performance ------------- Evolutions (1) 500 Regions Visited (3) 600 Robots Destroyed (27) 135 Value Destroyed (625) 625 Prototype IDs (0) 0 Alien Tech Used (0) 0 Bonus (0) 0 TOTAL SCORE: 1860 Bonus ------- None Cogmind --------- Core Integrity 0/400 Matter 217/300 Energy 281/290 System Corruption 0% Temperature Cool (15) Movement Rolling (110) Ox1 Location -9/Mines Parts ------- > --- POWER (1) -------- Reinforced Deuterium Engine > --- PROPULSION (2) --- Armored Huge Wheel > --- UTILITY (4) ------ Visual Processing Unit Terrain Scanner Terrain Scan Processor Improved Medium Armor Plating > --- WEAPON (2) ------- EM Shotgun Advanced Assault Cannon > --- INVENTORY (4) ---- Small Storage Unit Structural Scanner Improved Trap Extractor Lightning Gun Peak State ------------ > --- POWER ------------ Reinforced Deuterium Engine > --- PROPULSION ------- Armored Huge Wheel > --- UTILITY ---------- Visual Processing Unit Terrain Scanner Terrain Scan Processor Improved Medium Armor Plating > --- WEAPON ----------- EM Shotgun Advanced Assault Cannon > --- INVENTORY -------- Small Storage Unit Structural Scanner Improved Trap Extractor Lightning Gun [Rating: 28] Favorites ----------- Power Ion Engine Engine Ion Engine Propulsion Aluminum Leg Treads Light Treads Leg Aluminum Leg Wheel Armored Huge Wheel Utility Visual Processing Unit Device Terrain Scanner Storage Small Storage Unit Processor Visual Processing Unit Protection Improved Medium Armor Plating Weapon Assault Rifle Energy Gun Medium Laser Ballistic Gun Assault Rifle Ballistic Cannon Advanced Assault Cannon Build | -11 -10 -9 -9 ------- Run | Scr Mat Mat Min Slots Evolved 2 | . . 2 . Power . | . . . . Propulsion . | . . . . Utility 2 | . . 2 . Weapon . | . . . . Parts Attached 30 | 8 9 6 7 Power 4 | 1 1 1 1 Engine 4 | 1 1 1 1 Core . | . . . . Reactor . | . . . . Propulsion 10 | 4 3 2 1 Treads 2 | 2 . . . Leg 7 | 2 3 2 . Wheel 1 | . . . 1 Hover . | . . . . Flight . | . . . . Utility 8 | 1 2 2 3 Device 4 | . 1 2 1 Storage 1 | 1 . . . Processor 2 | . 1 . 1 Hackware . | . . . . Protection 1 | . . . 1 Artifact . | . . . . Weapon 8 | 2 3 1 2 Energy Gun 3 | 1 . 1 1 Energy Cannon . | . . . . Ballistic Gun 4 | 1 3 . . Ballistic Cannon 1 | . . . 1 Launcher . | . . . . Special Weapon . | . . . . Impact Weapon . | . . . . Slashing Weapon . | . . . . Piercing Weapon . | . . . . Special Melee Weapon . | . . . . Unidentified Prototypes . | . . . . Parts Lost 11 | . 1 10 . Power 2 | . . 2 . Propulsion 4 | . . 4 . Utility 1 | . . 1 . Weapon 4 | . 1 3 . Highest Loss Streak 6 | . 1 6 . Average Slot Usage (%) 92 | . 98 86 85 Engine 11 | . 14 7 10 Leg 17 | . 28 18 . Wheel 3 | . . . 10 Device 9 | . 2 21 13 Storage 9 | . 14 11 . Processor 13 | . 10 11 19 Protection 3 | . . . 10 Energy Gun 9 | . 10 2 11 Ballistic Gun 11 | . 17 13 . Ballistic Cannon 3 | . . . 10 Naked Turns . | . . . . Heaviest Build 34 | 13 14 14 34 Greatest Support 40 | 40 20 20 28 Greatest Overweight (x) 6 | . . 1 6 Average Overweight (x) . | . . . 1 Largest Inventory Capacity 6 | 6 6 6 6 Average Capacity 5 | 5 6 6 4 Most Carried 6 | 6 6 6 4 Average Carried 4 | 3 5 4 3 Final Capacity 6 | 6 6 6 4 Final Carried 6 | 4 6 2 4 Class Distribution -------------------- 41% | Scavenger-Mutant 36% | Mutant 22% | Skirmisher Dominant Class ---------------- Scavenger-Mutant | -10/Materials Scavenger-Mutant | -9/Materials Skirmisher | -9/Mines Resources | -11 -10 -9 -9 ----------- Run | Scr Mat Mat Min Matter Collected 530 | 289 194 . 47 Remotely . | . . . . Salvage Created 925 | 94 532 284 15 Parts 65 | 2 45 16 2 Haulers Intercepted 1 | . 1 . . Recyclers Shooed . | . . . . Parts Field Recycled . | . . . . Retrieved Matter . | . . . . Parts Self-Destructed . | . . . . Prevented . | . . . . Kills | -11 -10 -9 -9 ------- Run | Scr Mat Mat Min Combat Hostiles Destroyed 21 | . 14 6 1 Guns 21 | . 14 6 1 Classes Destroyed 8 | 1 5 2 . Worker 2 | . 2 . . Hauler 1 | . 1 . . Recycler 1 | 1 . . . Watcher 2 | . 2 . . Swarmer 7 | . 6 . 1 Grunt 11 | . 8 3 . Brawler 1 | . . 1 . Sentry 2 | . . 2 . Best Kill Streak 6 | 1 6 4 1 Combat Bots Only 4 | . 3 4 1 Max Kills in Single Turn 1 | 1 1 1 1 Gunslinging . | . . . . Exploded . | . . . . Melee . | . . . . Uniques/NPCs Destroyed . | . . . . Combat | -11 -10 -9 -9 -------- Run | Scr Mat Mat Min Damage Taken 1633 | . 482 1059 92 Core 538 | . 112 351 75 Absorbed by Shields . | . . . . Core Remaining (%) 77 | 100 55 . . Volleys Fired 70 | 3 41 23 3 Largest 2 | 1 2 2 2 Hottest 93 | 20 70 65 93 Shots Fired 117 | 3 76 33 5 Gun 115 | 3 76 33 3 Cannon 2 | . . . 2 Launcher . | . . . . Special . | . . . . Kinetic 70 | 3 41 24 2 Thermal 35 | . 35 . . Explosive . | . . . . Electromagnetic 12 | . . 9 3 Robot Hit Streak 8 | 3 8 8 1 Robot Miss Streak 4 | . 3 2 4 Penetration Max . | . . . . Secondary Targets 3 | . 2 1 . Max Gunslinging Chain 1 | . 1 1 . Shots Hit Robots 76 | 3 47 24 2 Core Hits 47 | 2 27 16 2 Critical Hits . | . . . . Critical Kills . | . . . . Critical Parts Destroyed . | . . . . Melee Attacks . | . . . . Impact . | . . . . Slashing . | . . . . Piercing . | . . . . Sneak Attacks . | . . . . Combat Hostiles . | . . . . Follow-up Attacks . | . . . . Damage Inflicted 1046 | 43 608 364 31 Guns 974 | 43 608 306 17 Cannons 14 | . . . 14 Explosions 47 | . . 47 . Melee . | . . . . Ramming 11 | . . 11 . Kinetic 526 | 43 283 186 14 Thermal 372 | . 325 47 . Explosive . | . . . . Electromagnetic 137 | . . 120 17 Impact . | . . . . Slashing . | . . . . Piercing . | . . . . Highest Corruption . | . . . . Average Corruption . | . . . . Corruption Purged . | . . . . Overload Shots . | . . . . Overflow Damage . | . . . . Projectiles . | . . . . Explosions . | . . . . Melee . | . . . . Knockbacks . | . . . . Impact . | . . . . Kinetic . | . . . . Secondary . | . . . . Self-Inflicted Damage 4 | . . 4 . Shots . | . . . . Rammed 4 | . . 4 . Targets Rammed 4 | . . 4 . Kicked . | . . . . Crushed . | . . . . Highest Temperature 108 | . 108 68 45 Average Temperature 30 | . 32 24 24 Received Heat Transfer 615 | . 162 453 . Siege Activations . | . . . . Robots Corrupted . | . . . . Combat Hostiles . | . . . . Parts Fried 1 | . . 1 . Impact Corruptions . | . . . . Robots Melted . | . . . . Combat Hostiles . | . . . . Parts Melted . | . . . . Heat Transferred 1062 | . 962 100 . Parts Sabotaged . | . . . . Parts Stolen . | . . . . Parts Stripped . | . . . . Power Chain Reactions 1 | . . 1 . Missiles Intercepted . | . . . . Alert | -11 -10 -9 -9 ------- Run | Scr Mat Mat Min Peak Influence 293 | 5 293 225 107 Initial 87 | . 3 39 87 Average 101 | 2 132 100 65 Maximum Alert Level 1 | . 1 1 . Low Security (%) 90 | 100 82 96 100 Level 1 9 | . 17 3 . Level 2 . | . . . . Level 3 . | . . . . Level 4 . | . . . . Level 5 . | . . . . High Security . | . . . . Max Security . | . . . . Squads Dispatched 6 | . 3 3 . Investigation 2 | . 1 1 . Extermination . | . . . . Reinforcement 4 | . 2 2 . Assault . | . . . . Garrison . | . . . . Intercept . | . . . . Construction Impeded . | . . . . Haulers Reinforced . | . . . . Stealth | -11 -10 -9 -9 --------- Run | Scr Mat Mat Min Distress Signals 1 | . . 1 . Communications Jammed . | . . . . Distress Signals . | . . . . Times Spotted 45 | . 19 18 8 Peak Tracking Total 10 | . 4 9 10 Tactical Retreats 2 | . . 2 . Traps | -11 -10 -9 -9 ------- Run | Scr Mat Mat Min Traps Triggered 3 | . 3 . . Indirectly . | . . . . Trap Hack Attempts . | . . . . Triggered . | . . . . Disarmed . | . . . . Reprogrammed . | . . . . Reused . | . . . . Traps Extracted . | . . . . Installed . | . . . . Triggered 1 | . . 1 . Machines | -11 -10 -9 -9 ---------- Run | Scr Mat Mat Min Machines Disabled . | . . . . Max in Single Turn . | . . . . Machines Sabotaged . | . . . . Garrisons Compromised . | . . . . Overloaded Fab Kills . | . . . . Fab Network Shutdowns . | . . . . Hacking | -11 -10 -9 -9 --------- Run | Scr Mat Mat Min Machines Accessed 8 | . 5 2 1 Terminals 7 | . 5 2 . Fabricators . | . . . . Repair Stations . | . . . . Recycling Units . | . . . . Scanalyzers . | . . . . Garrison Access . | . . . . Total Hacks 21 | . 14 6 1 Successful 14 | . 9 4 1 Failed 7 | . 5 2 . Catastrophic 2 | . 2 . . Database Lockouts . | . . . . Manual . | . . . . Terminals 20 | . 14 6 . Fabricators . | . . . . Repair Stations . | . . . . Recycling Units . | . . . . Scanalyzers . | . . . . Garrison Access . | . . . . Terminal Hacks 14 | . 9 4 1 Record 2 | . 1 1 . Open Door 1 | . . . 1 Level Access Points 1 | . 1 . . Branch Access Points 1 | . . 1 . Emergency Access Points 3 | . 2 1 . Alert Level 3 | . 3 . . Hauler Manifests 1 | . 1 . . Registered Components 1 | . 1 . . Zone Layout 1 | . . 1 . Fabricator Hacks . | . . . . Repair Station Hacks . | . . . . Recycling Unit Hacks . | . . . . Scanalyzer . | . . . . Garrison Access Hacks . | . . . . Unauthorized Hacks . | . . . . Terminals . | . . . . Fabricators . | . . . . Repair Stations . | . . . . Recycling Units . | . . . . Scanalyzers . | . . . . Garrison Access . | . . . . Data Cores Recovered . | . . . . Used . | . . . . Hacking Detections 4 | . 3 1 . Full Trace Events . | . . . . Feedback Events . | . . . . Feedback Blocked . | . . . . Robot Schematics Acquired . | . . . . Robots Built . | . . . . Matter . | . . . . Time . | . . . . Total Robot Build Rating . | . . . . Part Schematics Acquired . | . . . . Parts Built . | . . . . Matter . | . . . . Time . | . . . . Total Part Build Rating . | . . . . Parts Repaired . | . . . . Time . | . . . . Parts Recycled . | . . . . Recycled Matter . | . . . . Retrieved Matter . | . . . . Retrieved Components . | . . . . Parts Scanalyzed . | . . . . Part Schematics Acquired . | . . . . Parts Damaged . | . . . . Bothacking | -11 -10 -9 -9 ------------ Run | Scr Mat Mat Min Used RIF Installer . | . . . . Robots Hacked . | . . . . Non-combat . | . . . . Combat . | . . . . Robot Hacks Applied . | . . . . Relay Couplers Released . | . . . . Robots Rewired . | . . . . Allies Hacked . | . . . . Hacks Repelled . | . . . . Allies | -11 -10 -9 -9 -------- Run | Scr Mat Mat Min Total Allies . | . . . . Largest Group . | . . . . Highest-Rated Group . | . . . . Highest-Rated Ally . | . . . . Total Orders . | . . . . Ally Attacks . | . . . . Total Damage . | . . . . Kills . | . . . . Allies Corrupted . | . . . . Allies Melted . | . . . . Intel | -11 -10 -9 -9 ------- Run | Scr Mat Mat Min Robot Analysis Total . | . . . . Derelict Logs Recovered 1 | . . . 1 Drone Launches . | . . . . Drone Recoveries . | . . . . Exploration | -11 -10 -9 -9 ------------- Run | Scr Mat Mat Min Turns Passed 1900 | 91 931 320 558 Spaces Moved 1367 | 51 652 210 454 Core 75 | 8 . 40 27 Treads 29 | 29 . . . Legs 836 | 14 652 170 . Wheels 427 | . . . 427 Hover . | . . . . Flight . | . . . . Fastest Speed 50 | 50 120 100 100 Average Speed 117 | 131 120 116 112 Slowest Speed 350 | 160 120 120 350 Overloaded Moves . | . . . . Propulsion Burnouts . | . . . . Robots Hopped . | . . . . Cave-ins Triggered . | . . . . Exploration Rate (%) 49 | 5 93 26 74 Regions Visited 3 Branch Regions 1 Pre-discovered Areas . | . . . . Known Exits Taken 2 | . 1 1 . Unknown Exits Taken 1 | 1 . . . Scrap Searched 1 | . . . 1 Spaces Dug . | . . . . Terrain Destroyed 5 | . . 4 1 Melee . | . . . . Projectile 1 | . . . 1 AOE 4 | . . 4 . Terrain Rammed . | . . . . Walls Destroyed . | . . . . Machines Disabled . | . . . . Actions | -11 -10 -9 -9 --------- Run | Scr Mat Mat Min Total 1551 | 71 728 256 496 Wait 47 | . 8 12 27 Move 1364 | 50 651 209 454 Hop . | . . . . Pick Up 25 | 10 9 2 4 Fast Attach 7 | . 4 . 3 Attach 15 | 6 . 6 3 Detach 1 | . . . 1 Swap 8 | 2 5 . 1 Drop 10 | . 10 . . Fire 70 | 3 41 23 3 Melee . | . . . . Ram 4 | . . 4 . Kick . | . . . . Crush . | . . . . Escape Stasis . | . . . . Rewire . | . . . . Trap . | . . . . Miscellaneous . | . . . . Route ------- -11/Scrapyard -10/Materials (discovered 4 exits: *Mat x3 / [*Min]) -9/Materials (discovered 2 exits: *Min x2) -9/Mines (discovered 1 exit: [*Mat]) History --------- Turn | Location | Event 5 | -11/Scrapyard | Discovered new exit (range 14) 92 | -11/Scrapyard | Entered Materials 258 | -10/Materials | Discovered new exit (range 10) 272 | -10/Materials | Discovered new exit (range 15) 304 | -10/Materials | Build established: Mutant 390 | -10/Materials | Identified exit to Materials 742 | -10/Materials | Build established: Scavenger-Mutant 1023 | -10/Materials | Entered another Materials area 1023 | -9/Materials | Evolved 2 slots: Utility x2 1270 | -9/Materials | Lost 6 parts (2p2n2w) 1289 | -9/Materials | Core integrity fell below 50% 1331 | -9/Materials | Core integrity fell below 20% 1335 | -9/Materials | Identified exit to Mines 1343 | -9/Materials | Entered Mines 1350 | -9/Mines | Learned 4 Materials zone layouts 1357 | -9/Mines | Met a Derelict who couldn't figure out how to use a Trap Extractor 1361 | -9/Mines | Lost 4 parts (2n1u1w) 1546 | -9/Mines | Discovered new exit (range 10) 1782 | -9/Mines | Build established: Skirmisher 1884 | -9/Mines | Assembled infested the area 1889 | -9/Mines | Assisted by a Guerilla fighting off Assembled 1901 | -9/Mines | Destroyed by D-53 Grenadier with Mini Grenade Launcher Last Messages --------------- EXIT=FOUND K-01 Serf collects debris. S-10 Pest destroyed. Acquired 15 matter. U-05 Engineer builds a Wall. K-01 Serf collects debris. ALERT: Infestation in the mines, dispatching Demolisher response squad. K-01 Serf collects debris. A derelict emerges from the shadows: "You need to get out of here! I've been tracking a group of Assembled to figure out where they're coming from, and they're closing on this area, come on!" K-01 Serf collects debris. HP-UYS(h) system corrupted by crushing effect. K-01 Serf collects debris. HP-UYS(h): "I'll hold them off! Go on ahead or try to find another way!" K-01 Serf collects debris. as-79907 destroyed. K-01 Serf collects debris. C-30 ARC bursts open, deploying its payload. D-53 Grenadier unfolds itself. Map ----- +----------------------------------------------------+ | #??#?# #?## #??#??????????????????? | | ?????# #?## ##???????????????????????? | | #???## ## ##?#??????????????????????? | | ????#?# ## #??###??#?????????????????? | | ????#?### ###### ### ##????? ?????????????? | | #???#???## #????# ### ###?????????????????? | | ?###???### #?#??## ## ##???? #???????????? | | #?##???# #??#?## ### #?????????????? | | #???#??# ####??## #?#?????????????? | | ????#??# #????## #???????????????? | | ???##?## #?##??# ##??????#????????? | | ??#??#?# #?##?### k #######??#?????????????? | | ??###### ###?##?### ##?????????#????????????? | | ??# ] #??######## ######?#????????????????? | | ??# ########???#?### ## ############ ??? | | ??# #???#????????#?# % #?????? | | #?# #?????????#???## %a #?????? | | ??# #???????????#?## r h ### ######???????? | | ??# ##????#?###?#?### k ##?##?????#??????? | | ### #????#???##?##?### #????#???????????? | | #?????###?????#??## ##??##???????????? | | #####??????????######## #??#?##?#???????? | | ##?????????????# #?????#?????????? | | #??#??????????# ##???#??????????? | | #??????#?#????# #####k ##?##??##??#?????? | | ##?#?##???????# ##### @ ####??##?????#??????? | | #?#?#?????#???# ###?# #####?#????#?????????? | | ###????####?### ##??## ###?##??###???#???????? | | ##?????###????# #?#?### d####?##? ###?????????? | | ###?###?#?#?#?# #####?# %##??### ##?????????? | | #?#??#??#?##?## ####### d ### ##????????? | | ####????#????### ### ##???????? | | ??##?##??##### ## ### ???? | | ?#??###?### ## ### ???? | | ######??## ## #### ####### ######?????? | | ##### ## ## ###??######??????????? | | ### ### ##### ## ###?#???#????????????? | | ### ##### ## ####??####????#??????? | | " ### ### ##### ## #### ?????????? | | " * ########## ##?## ## #### """ ??"?????? | | " =#?###??### #### """ < ????????? | | ########?# #### ###### """ ????????? | | ####???#?## ### ######? ? ???????? | | ## ##????##### #?##???""? "?"???? #???? | | ########?####?## ## ###??? ??? ??"??"? ????? | | ??#####?#####?## ### #??#?# "?" ?"?????????#? | | ????????###?#### #### #####?? ?? ????? ? ?##?? | | #####?###?###?## #### #??####?###########????? | | ##?#??##?##??### ###??###?# #??#?? | | #####?####???### ##### ##?#?##### """ #????? | +----------------------------------------------------+ Best States ------------- Heat Dissipation 35 Energy Generation 16 Energy Capacity 290 Matter Stores 300 Matter Capacity 300 Sight Range 18 Robot Scan Range 10 Terrain Scan Range 14 Terrain Scan Density 85 Armor Coverage 225 Evasion (%) 40 Recoil Reduction 2 Item Schematics ----------------- None Robot Schematics ------------------ None Fabricated ------------ Nothing Alien Tech Used ----------------- None Achievements -------------- None Challenges ------------ None Game ------ Seed KineticBottomlessAmplifier Manual? 0 Play Time 00:24:16 Cumulative 9.4 hours Start 2021.08.04 @ 05:14:31 End 2021.08.04 @ 05:39:02 Sessions 1 Manual Loads 0 Difficulty Rogue Special Mode None Game No. 15 Rogue 15 Adventurer 0 Explorer 0 Win Type - Total 0 Types 0/0/0/0/0/0/0/0/0 Lore% 17 Gallery% 14 Achievement% 13 Wizard Run 0 Options --------- ASCII 1 Keyboard 0 Movement Vi Keybinds 0 Fullscreen 1 Font 18/SmallcapsGlow Map View 76x50 Tactical HUD 0 Map Filters NONE Filters NONE Steam 1 RUN: 48cf9ebb-6b23-427a-b30e-74d6b10fc1ba